[Event "Turkish Club Cup 2019"]
[Site "Konya"]
[Date "2019.07.18"]
[Round "4"]
[White "Temel, Burcu Melis"]
[Black "Koc, Azra Ece"]
[Result "1/2-1/2"]
[ECO "A08"]
[WhiteElo "1790"]
[BlackElo "1527"]
[Annotator "NA RC"]
[PlyCount "75"]
[EventDate "2019.07.16"]
[EventType "team-tourn"]
[EventCountry "TUR"]
[SourceTitle "playchess.com"]
[Source "ChessBase"]
[SourceQuality "1"]
[TimeControl "5400+30"]

1. Nf3 {[%emt 0:00:30]} Nf6 {[%emt 0:00:30]} 2. g3 {[%emt 0:00:00]} d5 {[%emt 0:00:30]} 3. Bg2 {[%emt 0:00:00]} c5 {[%emt 0:01:30]} 4. O-O {[%emt 0:00:30]} Nc6 {[%emt 0:00:30]} 5. d3 {[%emt 0:00:00]} e6 {[%emt 0:03:30]} 6. Nbd2 {[%emt 0:00:00]} Bd6 {[%emt 0:05:30]} 7. e4 {[%emt 0:00:30]} dxe4 {[%emt 0:01:30]} 8. dxe4 {[%emt 0:00:30]} O-O {[%emt 0:01:30]} 9. c3 {[%emt 0:00:30]} Rb8 {[%emt 0:03:30]} 10. Qe2 {[%emt 0:05:30]} Bc7 {[%emt 0:04:30]} 11. Rd1 {[%emt 0:18:30]} Qe7 {[%emt 0:09:30]} 12. Nf1 {[%emt 0:10:30]} h6 {[%emt 0:04:30]} 13. h4 {[%emt 0:00:30]} e5 {[%emt 0:16:30]} 14. N3h2 {[%emt 0:03:30]} Be6 {[%emt 0:03:30]} 15. g4 {[%emt 0:05:30]} Nh7 {[%emt 0:02:30]} 16. h5 {[%emt 0:08:30]} b5 {[%emt 0:06:30]} 17. Ne3 {[%emt 0:00:30]} Na5 {[%emt 0:01:30]} 18. Nd5 {[%emt 0:01:30]} Bxd5 {[%emt 0:01:30]} 19. exd5 {[%emt 0:00:00]} Nc4 {[%emt 0:01:30]} 20. Nf1 {[%emt 0:10:00]} Rfe8 {[%emt 0:02:30]} 21. Ng3 {[%emt 0:01:30]} Nd6 {[%emt 0:10:36]} 22. Be3 {[%emt 0:00:30]} Bb6 {[%emt 0:02:43]} 23. Ne4 {[%emt 0:06:30]} c4 {[%emt 0:00:09]} 24. a4 {[%emt 0:03:30]} Bxe3 {[%emt 0:05:58]} 25. Qxe3 {[%emt 0:04:15]} b4 {[%emt 0:05:46]} 26. Nxd6 {[%emt 0:07:49]} Qxd6 {[%emt 0:00:04]} 27. Qe2 {[%emt 0:01:29]} Rec8 {[%emt 0:01:30]} 28. Re1 {[%emt 0:00:23]} f6 {[%emt 0:01:03]} 29. Qe3 {[%emt 0:01:41]} a5 {[%emt 0:00:28]} 30. Rad1 {[%emt 0:03:18]} Nf8 {[%emt 0:00:21]} 31. Be4 {[%emt 0:00:18]} Rc5 {[%emt 0:00:41]} 32. Qf3 {[%emt 0:01:36]} Rd8 {[%emt 0:01:02]} 33. b3 {[%emt 0:01:38]} cxb3 {[%emt 0:01:11]} 34. cxb4 {[%emt 0:00:02]} axb4 {[%emt 0:00:11]} 35. Qxb3 {[%emt 0:00:35]} Rc3 {[%emt 0:00:44]} 36. Qb2 {[%emt 0:00:01]} Ra3 {[%emt 0:01:10]} 37. Qc2 {[%emt 0:01:37]} b3 {[%emt 0:00:34]} 38. Qc6 {[%emt 0:00:16]} 1/2-1/2

[Event "Turkish Club Cup 2019"]
[Site "Konya"]
[Date "2019.07.18"]
[Round "4"]
[White "Kacangar, Mehmed"]
[Black "Kiran, Seyit Kaan"]
[Result "1-0"]
[ECO "D51"]
[WhiteElo "1785"]
[BlackElo "1230"]
[Annotator "NA"]
[PlyCount "85"]
[EventDate "2019.07.16"]
[EventType "team-tourn"]
[EventCountry "TUR"]
[SourceTitle "playchess.com"]
[Source "ChessBase"]
[SourceQuality "1"]
[TimeControl "5400+30"]

1. c4 {[%emt 0:00:30]} c6 {[%emt 0:00:30]} 2. Nc3 {[%emt 0:00:00]} Nf6 {[%emt 0:00:30]} 3. d4 {[%emt 0:00:00]} d5 {[%emt 0:00:00]} 4. Nf3 {[%emt 0:00:30]} e6 {[%emt 0:01:00]} 5. Bg5 {[%emt 0:00:30]} Nbd7 {[%emt 0:00:30]} 6. c5 {[%emt 0:05:30]} b6 {[%emt 0:03:30]} 7. b4 {[%emt 0:00:30]} bxc5 {[%emt 0:01:30]} 8. bxc5 {[%emt 0:00:30]} Be7 {[%emt 0:01:30]} 9. e3 {[%emt 0:00:30]} h6 {[%emt 0:02:30]} 10. Bf4 {[%emt 0:01:30]} O-O {[%emt 0:03:30]} 11. Bd3 {[%emt 0:02:30]} Nh5 {[%emt 0:03:30]} 12. O-O {[%emt 0:02:30]} Nxf4 {[%emt 0:00:30]} 13. exf4 {[%emt 0:00:30]} Bf6 {[%emt 0:00:30]} 14. Ne5 {[%emt 0:00:30]} Bxe5 {[%emt 0:05:30]} 15. fxe5 {[%emt 0:00:00]} a5 {[%emt 0:01:30]} 16. Rb1 {[%emt 0:05:00]} Ba6 {[%emt 0:01:30]} 17. Bxa6 {[%emt 0:04:30]} Rxa6 {[%emt 0:00:30]} 18. Rb7 {[%emt 0:05:30]} f6 {[%emt 0:03:30]} 19. Qg4 {[%emt 0:10:30]} Qe8 {[%emt 0:02:30]} 20. Re1 {[%emt 0:03:30]} fxe5 {[%emt 0:03:30]} 21. Rxe5 {[%emt 0:01:30]} Rf6 {[%emt 0:07:30]} 22. Re1 {[%emt 0:04:30]} Qf7 {[%emt 0:05:30]} 23. Qg3 {[%emt 0:02:30]} Rg6 {[%emt 0:08:30]} 24. Qd3 {[%emt 0:04:30]} Nxc5 {[%emt 0:14:30]} 25. Rb8+ {[%emt 0:03:30]} Kh7 {[%emt 0:01:30]} 26. dxc5 {[%emt 0:00:30]} Ra7 {[%emt 0:00:30]} 27. Re3 {[%emt 0:03:30]} e5 {[%emt 0:05:30]} 28. Rxe5 {[%emt 0:01:30]} Qf4 {[%emt 0:00:30]} 29. Ree8 {[%emt 0:01:30]} Qxb8 {[%emt 0:01:30]} 30. Rxb8 {[%emt 0:00:30]} Re7 {[%emt 0:00:30]} 31. h4 {[%emt 0:01:30]} Re5 {[%emt 0:00:30]} 32. Rh8+ {[%emt 0:01:30]} Kxh8 {[%emt 0:00:30]} 33. Qxg6 {[%emt 0:00:00]} Re1+ {[%emt 0:00:30]} 34. Kh2 {[%emt 0:00:00]} Rc1 {[%emt 0:00:00]} 35. Ne2 {[%emt 0:01:30]} Rxc5 {[%emt 0:00:00]} 36. Nd4 {[%emt 0:00:30]} Rb5 {[%emt 0:00:30]} 37. Nxb5 {[%emt 0:01:30]} cxb5 {[%emt 0:00:30]} 38. Qe8+ {[%emt 0:00:00]} Kh7 {[%emt 0:00:00]} 39. f4 {[%emt 0:00:00]} b4 {[%emt 0:00:00]} 40. f5 {[%emt 0:00:30]} d4 {[%emt 0:00:00]} 41. Qf7 {[%emt 0:00:30]} d3 {[%emt 0:00:00]} 42. f6 {[%emt 0:00:30]} d2 {[%emt 0:00:30]} 43. Qxg7# {[%emt 0:00:30]} 1-0

[Event "Turkish Club Cup 2019"]
[Site "Konya"]
[Date "2019.07.18"]
[Round "4"]
[White "Celik, Musa"]
[Black "Daghan, Devran"]
[Result "1/2-1/2"]
[ECO "B90"]
[WhiteElo "1773"]
[BlackElo "2023"]
[Annotator "NA RC"]
[PlyCount "118"]
[EventDate "2019.07.16"]
[EventType "team-tourn"]
[EventCountry "TUR"]
[SourceTitle "playchess.com"]
[Source "ChessBase"]
[SourceQuality "1"]
[TimeControl "5400+30"]

1. e4 {[%emt 0:00:30]} c5 {[%emt 0:00:30]} 2. Nf3 {[%emt 0:00:30]} d6 {[%emt 0:00:00]} 3. d4 {[%emt 0:02:30]} cxd4 {[%emt 0:00:00]} 4. Nxd4 {[%emt 0:00:30]} Nf6 {[%emt 0:00:30]} 5. Nc3 {[%emt 0:01:30]} a6 {[%emt 0:00:00]} 6. a4 {[%emt 0:07:30]} e5 {[%emt 0:00:00]} 7. Nf3 {[%emt 0:04:30]} Qc7 {[%emt 0:00:30]} 8. Bg5 {[%emt 0:04:30]} Nbd7 {[%emt 0:05:30]} 9. Bd3 {[%emt 0:03:30]} h6 {[%emt 0:00:30]} 10. Be3 {[%emt 0:01:30]} Nc5 {[%emt 0:01:30]} 11. O-O {[%emt 0:01:30]} Be6 {[%emt 0:01:30]} 12. Re1 {[%emt 0:09:30]} Be7 {[%emt 0:14:30]} 13. Qe2 {[%emt 0:08:30]} O-O {[%emt 0:03:30]} 14. h3 {[%emt 0:11:30]} Rac8 {[%emt 0:06:30]} 15. Nd2 {[%emt 0:06:30]} Rfd8 {[%emt 0:01:30]} 16. Nf1 {[%emt 0:06:30]} Nxd3 {[%emt 0:06:30]} 17. cxd3 {[%emt 0:00:30]} d5 {[%emt 0:00:30]} 18. exd5 {[%emt 0:07:36]} Nxd5 {[%emt 0:00:30]} 19. Nxd5 {[%emt 0:03:34]} Rxd5 {[%emt 0:00:30]} 20. Rec1 {[%emt 0:03:02]} Qd8 {[%emt 0:01:30]} 21. Rxc8 {[%emt 0:00:50]} Bxc8 {[%emt 0:00:30]} 22. Rc1 {[%emt 0:00:44]} Be6 {[%emt 0:07:30]} 23. Rd1 {[%emt 0:03:47]} Bf5 {[%emt 0:07:30]} 24. Ng3 {[%emt 0:05:47]} Bxd3 {[%emt 0:01:30]} 25. Qg4 {[%emt 0:00:11]} Bg6 {[%emt 0:01:30]} 26. Rc1 {[%emt 0:00:21]} Qd7 {[%emt 0:00:30]} 27. Rc8+ {[%emt 0:01:14]} Kh7 {[%emt 0:00:30]} 28. Qc4 {[%emt 0:00:00]} b5 {[%emt 0:01:30]} 29. axb5 {[%emt 0:01:01]} axb5 {[%emt 0:00:30]} 30. Qc7 {[%emt 0:00:17]} Qxc7 {[%emt 0:01:30]} 31. Rxc7 {[%emt 0:00:01]} Bd6 {[%emt 0:00:30]} 32. Rb7 {[%emt 0:03:02]} f5 {[%emt 0:00:30]} 33. Ba7 {[%emt 0:01:40]} f4 {[%emt 0:01:30]} 34. Ne2 {[%emt 0:01:26]} Rd1+ {[%emt 0:00:30]} 35. Kh2 {[%emt 0:00:30]} Be4 {[%emt 0:00:00]} 36. Rxb5 {[%emt 0:00:00]} Ra1 {[%emt 0:03:00]} 37. Nc3 {[%emt 0:00:12]} Ba8 {[%emt 0:00:30]} 38. Bb8 {[%emt 0:01:01]} Bc6 {[%emt 0:05:30]} 39. Bxd6 {[%emt 0:00:16]} Bxb5 {[%emt 0:01:30]} 40. Nxb5 {[%emt 0:00:01]} Kg6 {[%emt 0:00:00]} 41. Nc3 {[%emt 0:00:38]} Kf5 {[%emt 0:00:00]} 42. f3 {[%emt 0:00:30]} g5 {[%emt 0:00:00]} 43. b4 {[%emt 0:00:23]} Rc1 {[%emt 0:00:00]} 44. Ne4 {[%emt 0:01:04]} h5 {[%emt 0:00:30]} 45. Nf2 {[%emt 0:00:46]} Rb1 {[%emt 0:00:30]} 46. Bc5 {[%emt 0:00:58]} Rc1 {[%emt 0:00:30]} 47. Bd6 {[%emt 0:00:00]} Rb1 {[%emt 0:01:30]} 48. Bc5 {[%emt 0:00:00]} Ke6 {[%emt 0:02:30]} 49. Ne4 {[%emt 0:01:08]} Kf5 {[%emt 0:05:30]} 50. b5 {[%emt 0:00:22]} g4 {[%emt 0:00:30]} 51. Nd6+ {[%emt 0:00:22]} Ke6 {[%emt 0:01:30]} 52. hxg4 {[%emt 0:01:21]} hxg4 {[%emt 0:00:00]} 53. b6 {[%emt 0:00:22]} Kd5 {[%emt 0:04:01]} 54. Ne4 {[%emt 0:00:25]} Kc6 {[%emt 0:00:52]} 55. Bd6 {[%emt 0:00:30]} gxf3 {[%emt 0:06:22]} 56. gxf3 {[%emt 0:00:16]} Rxb6 {[%emt 0:00:00]} 57. Bxe5 {[%emt 0:00:42]} Kd5 {[%emt 0:00:24]} 58. Bxf4 {[%emt 0:00:00]} Rb4 {[%emt 0:00:00]} 59. Kg3 {[%emt 0:00:38]} Rxe4 {[%emt 0:00:00]} 1/2-1/2

[Event "Turkish Club Cup 2019"]
[Site "Konya"]
[Date "2019.07.18"]
[Round "4"]
[White "Gurses, Ayberk"]
[Black "Saridag, Omer Melih"]
[Result "1/2-1/2"]
[ECO "B01"]
[WhiteElo "1770"]
[BlackElo "1820"]
[Annotator "NA RC"]
[PlyCount "114"]
[EventDate "2019.07.16"]
[EventType "team-tourn"]
[EventCountry "TUR"]
[SourceTitle "playchess.com"]
[Source "ChessBase"]
[SourceQuality "1"]
[TimeControl "5400+30"]

1. e4 {[%emt 0:00:30]} d5 {[%emt 0:00:30]} 2. exd5 {[%emt 0:00:00]} Qxd5 {[%emt 0:00:30]} 3. Nc3 {[%emt 0:00:00]} Qd6 {[%emt 0:01:30]} 4. d4 {[%emt 0:00:30]} Nf6 {[%emt 0:00:30]} 5. Bc4 {[%emt 0:02:30]} g6 {[%emt 0:00:30]} 6. Nf3 {[%emt 0:00:30]} Bg7 {[%emt 0:01:30]} 7. O-O {[%emt 0:01:30]} O-O {[%emt 0:00:00]} 8. h3 {[%emt 0:02:30]} a6 {[%emt 0:01:00]} 9. a4 {[%emt 0:01:30]} b6 {[%emt 0:05:30]} 10. Qe2 {[%emt 0:04:30]} Bb7 {[%emt 0:04:30]} 11. Be3 {[%emt 0:09:30]} Nbd7 {[%emt 0:05:30]} 12. Rad1 {[%emt 0:03:30]} e6 {[%emt 0:14:30]} 13. Ne1 {[%emt 0:08:30]} Nh5 {[%emt 0:05:30]} 14. d5 {[%emt 0:06:30]} Qe7 {[%emt 0:19:30]} 15. dxe6 {[%emt 0:01:30]} fxe6 {[%emt 0:00:30]} 16. Qg4 {[%emt 0:17:30]} Rf5 {[%emt 0:07:30]} 17. Nd3 {[%emt 0:07:30]} Kh8 {[%emt 0:01:30]} 18. Ne4 {[%emt 0:05:30]} Nhf6 {[%emt 0:06:30]} 19. Nxf6 {[%emt 0:01:30]} Nxf6 {[%emt 0:00:30]} 20. Qe2 {[%emt 0:03:30]} e5 {[%emt 0:02:44]} 21. Ne1 {[%emt 0:01:56]} Ne4 {[%emt 0:05:50]} 22. Bd5 {[%emt 0:01:47]} Bxd5 {[%emt 0:00:18]} 23. Rxd5 {[%emt 0:00:07]} Raf8 {[%emt 0:01:15]} 24. Nf3 {[%emt 0:02:12]} Nf6 {[%emt 0:02:29]} 25. Rdd1 {[%emt 0:01:36]} c5 {[%emt 0:01:02]} 26. Nd2 {[%emt 0:03:32]} Nd5 {[%emt 0:01:08]} 27. Nc4 {[%emt 0:00:35]} e4 {[%emt 0:00:22]} 28. Rd2 {[%emt 0:02:51]} b5 {[%emt 0:01:23]} 29. axb5 {[%emt 0:01:25]} axb5 {[%emt 0:00:05]} 30. Rfd1 {[%emt 0:00:00]} Nf4 {[%emt 0:02:10]} 31. Bxf4 {[%emt 0:00:52]} Rxf4 {[%emt 0:00:09]} 32. Ne3 {[%emt 0:00:00]} Bd4 {[%emt 0:01:20]} 33. Rf1 {[%emt 0:02:29]} Qg5 {[%emt 0:00:31]} 34. Kh1 {[%emt 0:01:57]} Bxb2 {[%emt 0:01:09]} 35. Qxb5 {[%emt 0:00:36]} Bc3 {[%emt 0:01:23]} 36. Rd5 {[%emt 0:00:23]} Qe7 {[%emt 0:01:38]} 37. Rd7 {[%emt 0:01:36]} Qe6 {[%emt 0:01:16]} 38. Qb7 {[%emt 0:01:03]} R4f7 {[%emt 0:00:19]} 39. Rxf7 {[%emt 0:00:33]} Rxf7 {[%emt 0:00:17]} 40. Qb3 {[%emt 0:00:32]} Qxb3 {[%emt 0:00:32]} 41. cxb3 {[%emt 0:00:01]} Bd4 {[%emt 0:00:39]} 42. Kg1 {[%emt 0:00:41]} Kg7 {[%emt 0:02:34]} 43. Rd1 {[%emt 0:01:13]} Rb7 {[%emt 0:00:17]} 44. Nc2 {[%emt 0:00:33]} Be5 {[%emt 0:01:24]} 45. Rd5 {[%emt 0:00:26]} Kf6 {[%emt 0:00:10]} 46. Rxc5 {[%emt 0:00:44]} Rxb3 {[%emt 0:00:05]} 47. g3 {[%emt 0:00:48]} Rc3 {[%emt 0:00:48]} 48. Rxc3 {[%emt 0:00:20]} Bxc3 {[%emt 0:00:04]} 49. Kf1 {[%emt 0:00:41]} Ke5 {[%emt 0:00:10]} 50. Ke2 {[%emt 0:00:03]} h5 {[%emt 0:00:07]} 51. Ne3 {[%emt 0:00:30]} Bd4 {[%emt 0:00:13]} 52. Ng2 {[%emt 0:01:42]} Kf5 {[%emt 0:00:37]} 53. Ne3+ {[%emt 0:00:10]} Bxe3 {[%emt 0:01:16]} 54. Kxe3 {[%emt 0:00:52]} g5 {[%emt 0:00:12]} 55. f3 {[%emt 0:01:11]} exf3 {[%emt 0:00:48]} 56. Kxf3 {[%emt 0:00:37]} Ke5 {[%emt 0:00:00]} 57. h4 {[%emt 0:00:38]} gxh4 {[%emt 0:00:00]} 1/2-1/2

[Event "Turkish Club Cup 2019"]
[Site "Konya"]
[Date "2019.07.18"]
[Round "4"]
[White "Senyuz, Mustafa Zorbey"]
[Black "Kiziltas, Inanc Vefa"]
[Result "0-1"]
[ECO "B01"]
[WhiteElo "1754"]
[BlackElo "1858"]
[Annotator "NA RC"]
[PlyCount "80"]
[EventDate "2019.07.16"]
[EventType "team-tourn"]
[EventCountry "TUR"]
[SourceTitle "playchess.com"]
[Source "ChessBase"]
[SourceQuality "1"]
[TimeControl "5400+30"]

1. e4 {[%emt 0:00:30]} d5 {[%emt 0:00:30]} 2. exd5 {[%emt 0:01:30]} Nf6 {[%emt 0:02:30]} 3. d4 {[%emt 0:00:30]} Bg4 {[%emt 0:00:30]} 4. Be2 {[%emt 0:00:00]} Bxe2 {[%emt 0:00:30]} 5. Qxe2 {[%emt 0:00:00]} Qxd5 {[%emt 0:00:30]} 6. Nf3 {[%emt 0:00:00]} Nc6 {[%emt 0:00:30]} 7. c4 {[%emt 0:00:00]} Qf5 {[%emt 0:00:30]} 8. O-O {[%emt 0:01:30]} O-O-O {[%emt 0:02:30]} 9. d5 {[%emt 0:00:30]} Nb4 {[%emt 0:00:00]} 10. Nc3 {[%emt 0:01:30]} e6 {[%emt 0:02:00]} 11. Bg5 {[%emt 0:23:30]} exd5 {[%emt 0:12:30]} 12. a3 {[%emt 0:03:30]} Nd3 {[%emt 0:17:30]} 13. Bxf6 {[%emt 0:09:30]} Nf4 {[%emt 0:03:30]} 14. Qe5 {[%emt 0:03:30]} Qg4 {[%emt 0:00:30]} 15. Ne1 {[%emt 0:11:30]} gxf6 {[%emt 0:16:30]} 16. Qxf6 {[%emt 0:01:30]} Nxg2 {[%emt 0:01:30]} 17. f3 {[%emt 0:03:30]} Qh3 {[%emt 0:00:30]} 18. Nxg2 {[%emt 0:06:30]} Rg8 {[%emt 0:00:30]} 19. Rf2 {[%emt 0:00:00]} Bc5 {[%emt 0:00:30]} 20. Kf1 {[%emt 0:02:00]} Bxf2 {[%emt 0:00:00]} 21. Kxf2 {[%emt 0:00:30]} Qxg2+ {[%emt 0:01:00]} 22. Ke3 {[%emt 0:00:00]} d4+ {[%emt 0:00:30]} 23. Kd3 {[%emt 0:00:00]} dxc3+ {[%emt 0:00:30]} 24. Kxc3 {[%emt 0:00:00]} Qg7 {[%emt 0:00:00]} 25. Qxg7 {[%emt 0:00:00]} Rxg7 {[%emt 0:01:00]} 26. Re1 {[%emt 0:00:00]} Kd7 {[%emt 0:00:00]} 27. b4 {[%emt 0:00:00]} Rg2 {[%emt 0:01:00]} 28. Rd1+ {[%emt 0:00:00]} Ke7 {[%emt 0:00:30]} 29. Re1+ {[%emt 0:00:00]} Kf6 {[%emt 0:00:00]} 30. Re4 {[%emt 0:00:00]} Rxh2 {[%emt 0:00:00]} 31. Rf4+ {[%emt 0:00:00]} Ke6 {[%emt 0:01:30]} 32. Re4+ {[%emt 0:00:00]} Kd7 {[%emt 0:00:00]} 33. f4 {[%emt 0:00:00]} Rh3+ {[%emt 0:00:00]} 34. Kb2 {[%emt 0:00:30]} Kc6 {[%emt 0:00:30]} 35. b5+ {[%emt 0:00:00]} Kc5 {[%emt 0:01:30]} 36. Re7 {[%emt 0:00:00]} Rd2+ {[%emt 0:00:30]} 37. Kc1 {[%emt 0:00:00]} Rf2 {[%emt 0:00:30]} 38. Rxc7+ {[%emt 0:00:00]} Kd4 {[%emt 0:01:30]} 39. Rd7+ {[%emt 0:00:00]} Kxc4 {[%emt 0:01:30]} 40. Rc7+ {[%emt 0:00:00]} Kb3 {[%emt 0:00:30]} 0-1

[Event "Turkish Club Cup 2019"]
[Site "Konya"]
[Date "2019.07.18"]
[Round "4"]
[White "Toren, Kadir"]
[Black "Yenicirak, Gokdeniz Ege"]
[Result "1-0"]
[ECO "E62"]
[WhiteElo "1736"]
[BlackElo "1636"]
[Annotator "NA RC"]
[PlyCount "87"]
[EventDate "2019.07.16"]
[EventType "team-tourn"]
[EventCountry "TUR"]
[SourceTitle "playchess.com"]
[Source "ChessBase"]
[SourceQuality "1"]
[TimeControl "5400+30"]

1. Nf3 {[%emt 0:00:30]} d6 {[%emt 0:00:30]} 2. g3 {[%emt 0:00:00]} Nf6 {[%emt 0:00:00]} 3. Bg2 {[%emt 0:01:00]} g6 {[%emt 0:04:00]} 4. c4 {[%emt 0:02:30]} Bg7 {[%emt 0:01:30]} 5. d4 {[%emt 0:02:30]} O-O {[%emt 0:00:30]} 6. Nc3 {[%emt 0:00:30]} c6 {[%emt 0:04:30]} 7. O-O {[%emt 0:01:30]} Bd7 {[%emt 0:09:30]} 8. Re1 {[%emt 0:07:30]} Qc7 {[%emt 0:04:30]} 9. b3 {[%emt 0:08:30]} Re8 {[%emt 0:06:30]} 10. Ba3 {[%emt 0:07:30]} Qa5 {[%emt 0:07:30]} 11. Bb2 {[%emt 0:00:30]} Qh5 {[%emt 0:03:30]} 12. e4 {[%emt 0:04:30]} e5 {[%emt 0:04:30]} 13. Ne2 {[%emt 0:03:30]} Nxe4 {[%emt 0:09:30]} 14. dxe5 {[%emt 0:15:30]} dxe5 {[%emt 0:02:30]} 15. Nh4 {[%emt 0:05:30]} Ng5 {[%emt 0:10:30]} 16. Qd6 {[%emt 0:07:30]} Ne6 {[%emt 0:08:30]} 17. Rad1 {[%emt 0:03:30]} Rd8 {[%emt 0:08:49]} 18. Qb4 {[%emt 0:01:30]} Na6 {[%emt 0:01:16]} 19. Qa5 {[%emt 0:05:30]} Nac7 {[%emt 0:07:00]} 20. Bc1 {[%emt 0:03:37]} b6 {[%emt 0:01:21]} 21. Qa3 {[%emt 0:05:19]} Nc5 {[%emt 0:00:30]} 22. Rxd7 {[%emt 0:01:48]} Rxd7 {[%emt 0:00:05]} 23. Bf3 {[%emt 0:01:02]} Nd3 {[%emt 0:00:02]} 24. Bxh5 {[%emt 0:00:25]} Nxe1 {[%emt 0:00:06]} 25. Nf3 {[%emt 0:04:35]} Rd1 {[%emt 0:00:59]} 26. Nxe1 {[%emt 0:01:31]} Rxe1+ {[%emt 0:00:30]} 27. Kg2 {[%emt 0:00:30]} gxh5 {[%emt 0:00:00]} 28. Qb2 {[%emt 0:00:00]} Rd8 {[%emt 0:00:06]} 29. Be3 {[%emt 0:01:29]} Ne6 {[%emt 0:02:34]} 30. Nc3 {[%emt 0:01:51]} e4 {[%emt 0:01:41]} 31. Qc2 {[%emt 0:01:03]} Nd4 {[%emt 0:00:46]} 32. Qxe4 {[%emt 0:00:51]} Nxb3 {[%emt 0:01:17]} 33. axb3 {[%emt 0:00:52]} Bxc3 {[%emt 0:00:02]} 34. Qxc6 {[%emt 0:00:37]} Red1 {[%emt 0:00:49]} 35. Qh6 {[%emt 0:00:34]} Bd4 {[%emt 0:00:54]} 36. Qg5+ {[%emt 0:01:24]} Bg7 {[%emt 0:00:30]} 37. Qxh5 {[%emt 0:00:00]} R1d3 {[%emt 0:00:00]} 38. b4 {[%emt 0:00:05]} Rb3 {[%emt 0:00:52]} 39. Qg5 {[%emt 0:00:26]} Rdd3 {[%emt 0:00:40]} 40. Qf5 {[%emt 0:00:52]} Rd8 {[%emt 0:00:19]} 41. Qg5 {[%emt 0:00:39]} Rbd3 {[%emt 0:00:44]} 42. c5 {[%emt 0:00:26]} R3d5 {[%emt 0:00:24]} 43. Qg4 {[%emt 0:00:31]} bxc5 {[%emt 0:00:32]} 44. Bh6 {[%emt 0:00:27]} 1-0

[Event "Turkish Club Cup 2019"]
[Site "Konya"]
[Date "2019.07.18"]
[Round "4"]
[White "Taskin, Arda"]
[Black "Karaman, Arda"]
[Result "1-0"]
[ECO "D52"]
[WhiteElo "1723"]
[BlackElo "1082"]
[Annotator "NA"]
[PlyCount "77"]
[EventDate "2019.07.16"]
[EventType "team-tourn"]
[EventCountry "TUR"]
[SourceTitle "playchess.com"]
[Source "ChessBase"]
[SourceQuality "1"]
[TimeControl "5400+30"]

1. d4 {[%emt 0:00:30]} d5 {[%emt 0:00:30]} 2. c4 {[%emt 0:00:00]} c6 {[%emt 0:00:30]} 3. Nc3 {[%emt 0:00:00]} e6 {[%emt 0:00:00]} 4. Nf3 {[%emt 0:00:30]} Nf6 {[%emt 0:00:00]} 5. Bg5 {[%emt 0:00:00]} Bd6 {[%emt 0:03:30]} 6. e3 {[%emt 0:00:00]} Nbd7 {[%emt 0:00:30]} 7. Bd3 {[%emt 0:00:30]} h6 {[%emt 0:00:30]} 8. Bh4 {[%emt 0:00:00]} O-O {[%emt 0:01:30]} 9. O-O {[%emt 0:00:00]} Qe7 {[%emt 0:02:30]} 10. e4 {[%emt 0:03:30]} e5 {[%emt 0:07:30]} 11. cxd5 {[%emt 0:03:30]} exd4 {[%emt 0:00:30]} 12. Ne2 {[%emt 0:05:30]} c5 {[%emt 0:05:30]} 13. Bg3 {[%emt 0:03:30]} Be5 {[%emt 0:04:30]} 14. Rc1 {[%emt 0:09:30]} b6 {[%emt 0:03:30]} 15. h3 {[%emt 0:01:30]} Qd6 {[%emt 0:02:30]} 16. Bc2 {[%emt 0:04:30]} Ba6 {[%emt 0:02:30]} 17. Bd3 {[%emt 0:02:30]} Bc8 {[%emt 0:01:30]} 18. Qb3 {[%emt 0:00:30]} Nh5 {[%emt 0:03:30]} 19. Bxe5 {[%emt 0:00:30]} Nxe5 {[%emt 0:00:30]} 20. Nxe5 {[%emt 0:00:30]} Qxe5 {[%emt 0:00:00]} 21. f4 {[%emt 0:00:30]} Qe7 {[%emt 0:03:00]} 22. e5 {[%emt 0:04:30]} Bb7 {[%emt 0:03:30]} 23. Be4 {[%emt 0:00:30]} Qd8 {[%emt 0:01:30]} 24. g4 {[%emt 0:02:30]} Nf6 {[%emt 0:03:30]} 25. exf6 {[%emt 0:03:30]} Qxf6 {[%emt 0:00:30]} 26. Qf3 {[%emt 0:00:30]} Rfe8 {[%emt 0:01:30]} 27. Ng3 {[%emt 0:00:30]} g6 {[%emt 0:01:30]} 28. Rce1 {[%emt 0:01:30]} Ba6 {[%emt 0:00:30]} 29. Rf2 {[%emt 0:01:30]} d3 {[%emt 0:01:30]} 30. Rd2 {[%emt 0:01:30]} Qd4+ {[%emt 0:00:30]} 31. Qf2 {[%emt 0:00:30]} Qxf2+ {[%emt 0:01:30]} 32. Kxf2 {[%emt 0:00:00]} c4 {[%emt 0:00:00]} 33. f5 {[%emt 0:01:00]} g5 {[%emt 0:01:00]} 34. Nh5 {[%emt 0:00:30]} Re7 {[%emt 0:01:30]} 35. d6 {[%emt 0:00:00]} Re5 {[%emt 0:00:30]} 36. Bxa8 {[%emt 0:00:00]} c3 {[%emt 0:02:30]} 37. bxc3 {[%emt 0:00:30]} Re2+ {[%emt 0:00:00]} 38. Rexe2 {[%emt 0:00:30]} dxe2 {[%emt 0:00:00]} 39. d7 {[%emt 0:00:00]} 1-0

[Event "Turkish Club Cup 2019"]
[Site "Konya"]
[Date "2019.07.18"]
[Round "4"]
[White "Vursan, Emre Can"]
[Black "Ercan, Mehmet Fahri"]
[Result "1-0"]
[ECO "C62"]
[WhiteElo "1714"]
[BlackElo "1883"]
[Annotator "NA RC"]
[PlyCount "51"]
[EventDate "2019.07.16"]
[EventType "team-tourn"]
[EventCountry "TUR"]
[SourceTitle "playchess.com"]
[Source "ChessBase"]
[SourceQuality "1"]
[TimeControl "5400+30"]

1. e4 {[%emt 0:00:30]} e5 {[%emt 0:00:30]} 2. Nf3 {[%emt 0:00:30]} Nc6 {[%emt 0:00:30]} 3. Nc3 {[%emt 0:00:30]} Nf6 {[%emt 0:00:30]} 4. Bb5 {[%emt 0:00:00]} d6 {[%emt 0:11:30]} 5. d4 {[%emt 0:00:00]} exd4 {[%emt 0:00:00]} 6. Qxd4 {[%emt 0:09:30]} Bd7 {[%emt 0:15:00]} 7. Bxc6 {[%emt 0:00:30]} Bxc6 {[%emt 0:00:30]} 8. Bg5 {[%emt 0:00:00]} Be7 {[%emt 0:00:30]} 9. O-O-O {[%emt 0:00:00]} O-O {[%emt 0:11:30]} 10. e5 {[%emt 0:00:30]} Ne8 {[%emt 0:05:30]} 11. Bxe7 {[%emt 0:09:30]} Qxe7 {[%emt 0:00:30]} 12. exd6 {[%emt 0:00:00]} Qxd6 {[%emt 0:10:30]} 13. Qh4 {[%emt 0:03:00]} Qf6 {[%emt 0:05:30]} 14. Qg3 {[%emt 0:02:30]} Nd6 {[%emt 0:05:30]} 15. Ne5 {[%emt 0:06:30]} Nf5 {[%emt 0:03:30]} 16. Qf4 {[%emt 0:00:30]} g5 {[%emt 0:00:30]} 17. Ng4 {[%emt 0:00:30]} gxf4 {[%emt 0:07:22]} 18. Nxf6+ {[%emt 0:00:00]} Kh8 {[%emt 0:00:01]} 19. Ncd5 {[%emt 0:02:00]} f3 {[%emt 0:09:12]} 20. gxf3 {[%emt 0:00:30]} Rad8 {[%emt 0:00:41]} 21. Rhg1 {[%emt 0:02:30]} h6 {[%emt 0:00:48]} 22. Rg4 {[%emt 0:03:30]} Rd6 {[%emt 0:08:19]} 23. Rdg1 {[%emt 0:02:30]} Rdd8 {[%emt 0:00:30]} 24. c4 {[%emt 0:06:30]} Bxd5 {[%emt 0:01:29]} 25. cxd5 {[%emt 0:00:00]} Ne7 {[%emt 0:00:26]} 26. Rg7 {[%emt 0:00:00]} 1-0